Cogmind - Beta 13 @@@ ROGUE MODE // 2024.06.10 @ 02:06:45 Player: Jelly Donuts Result: Destroyed by as-17524 with Assembled Rifle Performance ------------- Evolutions (0) 0 Regions Visited (2) 400 Robots Destroyed (12) 60 Value Destroyed (160) 160 Prototype IDs (2) 40 Alien Tech Used (0) 0 Bonus (0) 0 TOTAL SCORE: 660 Bonus ------- None Cogmind --------- Core Integrity 0/250 Matter 263/300 Energy 123/125 System Corruption 0% Temperature Cool (0) Movement Rolling (90) Location -10/Mines Parts ------- > --- POWER (1) -------- Light Ion Engine > --- PROPULSION (2) --- Wheel Compact Wheel > --- UTILITY (2) ------ Small Storage Unit Improved Terrain Scanner > --- WEAPON (2) ------- Bore Cannon Grenade Launcher > --- INVENTORY (8) ---- Wheel Assault Rifle Peak State ------------ > --- POWER ------------ Light Ion Engine > --- PROPULSION ------- Wheel Compact Wheel > --- UTILITY ---------- Small Storage Unit Improved Terrain Scanner > --- WEAPON ----------- Bore Cannon Grenade Launcher > --- INVENTORY -------- Assault Rifle [Rating: 13] Favorites ----------- Power Ion Engine Engine Ion Engine Propulsion Aluminum Leg Treads Light Treads Leg Aluminum Leg Wheel Wheel Utility Small Storage Unit Device Improved Terrain Scanner Storage Small Storage Unit Weapon Assault Rifle Ballistic Gun Assault Rifle Ballistic Cannon Bore Cannon Launcher Grenade Launcher Build | -11 -10 -10 ------- Run | Yrd Mat Min Slots Evolved . | . . . Power . | . . . Propulsion . | . . . Utility . | . . . Weapon . | . . . Parts Attached 21 | 9 5 7 Power 3 | 1 1 1 Engine 3 | 1 1 1 Core . | . . . Reactor . | . . . Propulsion 8 | 4 1 3 Treads 2 | 2 . . Leg 3 | 2 1 . Wheel 3 | . . 3 Hover . | . . . Flight . | . . . Utility 3 | 2 1 . Device 2 | 1 1 . Storage 1 | 1 . . Processor . | . . . Hackware . | . . . Protection . | . . . Artifact . | . . . Weapon 7 | 2 2 3 Energy Gun . | . . . Energy Cannon . | . . . Ballistic Gun 3 | 2 1 . Ballistic Cannon 1 | . . 1 Launcher 3 | . 1 2 Special Weapon . | . . . Impact Weapon . | . . . Slashing Weapon . | . . . Piercing Weapon . | . . . Special Melee Weapon . | . . . Unidentified Prototypes . | . . . Parts Lost 6 | . . 6 Power 1 | . . 1 Propulsion 3 | . . 3 Utility . | . . . Weapon 2 | . . 2 Highest Loss Streak 6 | . . 6 To Critical Strikes . | . . . Average Slot Usage (%) 97 | . 97 96 Engine 13 | . 14 13 Leg 25 | . 28 18 Wheel 2 | . . 9 Device 13 | . 12 14 Storage 14 | . 14 14 Ballistic Gun 15 | . 17 9 Launcher 10 | . 9 12 Naked Turns . | . . . Heaviest Build 21 | 13 16 21 Greatest Support 26 | 20 20 26 Greatest Overweight (x) . | . . . Average Overweight (x) . | . . . Largest Inventory Capacity 8 | 8 8 8 Average Capacity 7 | 7 8 8 Most Carried 7 | 3 6 7 Average Carried 3 | . 3 4 Final Capacity 8 | 8 8 8 Final Carried 5 | 3 5 2 Class Distribution -------------------- 94% | Mutant 5% | Scavenger-Mutant Dominant Class ---------------- Mutant | -10/Materials Mutant | -10/Mines Resources | -11 -10 -10 ----------- Run | Yrd Mat Min Matter Collected 522 | 214 235 73 Remotely . | . . . Salvage Created 302 | 22 259 21 Parts 26 | 5 16 5 Haulers Intercepted 1 | . 1 . Recyclers Shooed 1 | 1 . . Parts Field Recycled . | . . . Retrieved Matter . | . . . Parts Self-Destructed . | . . . Prevented . | . . . Kills | -11 -10 -10 ------- Run | Yrd Mat Min Combat Hostiles Destroyed 8 | . 5 3 Guns 5 | . 5 . AOE 3 | . . 3 Classes Destroyed 5 | 1 4 . Tunneler 2 | 1 1 . Hauler 1 | . 1 . Recycler 1 | . 1 . Swarmer 6 | . 3 3 Grunt 2 | . 2 . Best Kill Streak 4 | 1 4 3 Combat Bots Only 4 | . 4 3 Max Kills in Single Turn 3 | 1 2 3 Gunslinging . | . . . Exploded 3 | . . 3 Melee . | . . . Uniques/NPCs Destroyed . | . . . Combat | -11 -10 -10 -------- Run | Yrd Mat Min Hostile Shots Fired 55 | . 26 29 Missed 14 | . 8 6 Damage Taken 864 | . 202 662 Core 253 | . 26 227 Absorbed by Shields . | . . . Regen/Repaired (Parts) 48 | . 48 . Core Remaining (%) 100 | 100 . . Volleys Fired 24 | 1 21 2 Largest 2 | 2 2 2 Hottest 53 | 40 50 53 Shots Fired 44 | 2 38 4 Gun 39 | 2 35 2 Cannon . | . . . Launcher 5 | . 3 2 Special . | . . . Kinetic 39 | 2 35 2 Thermal . | . . . Explosive 5 | . 3 2 Electromagnetic . | . . . Robot Hit Streak 4 | 1 4 1 Robot Miss Streak 3 | 1 3 3 Penetration Max . | . . . Secondary Targets . | . . . Shots Hit Robots 22 | 1 20 1 Core Hits 18 | 2 12 4 Critical Kills . | . . . Critical Parts Destroyed . | . . . Critical Strikes . | . . . Melee Attacks . | . . . Impact . | . . . Slashing . | . . . Piercing . | . . . Sneak Attacks . | . . . Combat Hostiles . | . . . Follow-up Attacks . | . . . Damage Inflicted 562 | 26 366 170 Guns 311 | 26 275 10 Cannons . | . . . Explosions 251 | . 91 160 Melee . | . . . Ramming . | . . . Kinetic 311 | 26 275 10 Thermal . | . . . Explosive 251 | . 91 160 Electromagnetic . | . . . Impact . | . . . Slashing . | . . . Piercing . | . . . Highest Corruption . | . . . Average Corruption . | . . . Corruption Purged . | . . . Corruption Blocked . | . . . Overload Shots . | . . . Overflow Damage 8 | . . 8 Projectiles . | . . . Explosions 8 | . . 8 Melee . | . . . Knockbacks . | . . . Impact . | . . . Kinetic . | . . . Secondary . | . . . Self-Inflicted Damage 69 | . 23 46 Shots 3 | . 1 2 Rammed . | . . . Targets Rammed . | . . . Kicked . | . . . Crushed . | . . . Highest Temperature . | . . . Average Temperature . | . . . Received Heat Transfer 72 | . 72 . Siege Activations . | . . . Robots Corrupted . | . . . Combat Hostiles . | . . . Parts Fried . | . . . Impact Corruptions . | . . . Robots Melted . | . . . Combat Hostiles . | . . . Parts Melted . | . . . Heat Transferred . | . . . Parts Sabotaged . | . . . Parts Stolen . | . . . Parts Stripped . | . . . Power Chain Reactions . | . . . Alert | -11 -10 -10 ------- Run | Yrd Mat Min Peak Influence 211 | 5 211 83 Initial 4 | . 3 4 Average 109 | 1 149 62 Maximum Alert Level 1 | . 1 . Low Security (%) 98 | 100 97 100 Level 1 1 | . 2 . Level 2 . | . . . Level 3 . | . . . Level 4 . | . . . Level 5 . | . . . High Security . | . . . Max Security . | . . . Squads Dispatched 2 | . 2 . Investigation . | . . . Extermination . | . . . Reinforcement 2 | . 2 . Assault . | . . . Garrison . | . . . Intercept . | . . . Searches Triggered . | . . . Construction Impeded . | . . . Haulers Reinforced . | . . . Active Scanning Responses . | . . . Cargo Convoy Interrupts . | . . . Stealth | -11 -10 -10 --------- Run | Yrd Mat Min Distress Signals . | . . . Communications Jammed . | . . . Distress Signals . | . . . Times Spotted 24 | . 9 15 Peak Tracking Total 12 | . 5 12 Tactical Retreats 3 | . . 3 Traps | -11 -10 -10 ------- Run | Yrd Mat Min Traps Triggered . | . . . Indirectly . | . . . Trap Hack Attempts . | . . . Triggered . | . . . Disarmed . | . . . Reprogrammed . | . . . Reused . | . . . Traps Extracted . | . . . Installed . | . . . Triggered . | . . . Machines | -11 -10 -10 ---------- Run | Yrd Mat Min Machines Disabled 1 | . 1 . Max in Single Turn 1 | . 1 . Machines Repaired . | . . . Machines Dismantled . | . . . Machines Sabotaged . | . . . Overloaded Fab Kills . | . . . Hacking | -11 -10 -10 --------- Run | Yrd Mat Min Machines Accessed 3 | . 3 . Terminals 2 | . 2 . Fabricators . | . . . Repair Stations 1 | . 1 . Recycling Units . | . . . Scanalyzers . | . . . Garrison Access . | . . . Total Hacks 7 | . 7 . Successful 6 | . 6 . Failed 1 | . 1 . Catastrophic 1 | . 1 . Database Lockouts . | . . . Manual 2 | . 2 . Terminals 3 | . 3 . Fabricators . | . . . Repair Stations 4 | . 4 . Recycling Units . | . . . Scanalyzers . | . . . Garrison Access . | . . . Terminal Hacks 2 | . 2 . Prototype ID Bank 1 | . 1 . Registered Prototypes 1 | . 1 . Fabricator Hacks . | . . . Repair Station Hacks 4 | . 4 . Scan Component 2 | . 2 . Repair 2 | . 2 . Recycling Unit Hacks . | . . . Scanalyzer . | . . . Garrison Access Hacks . | . . . Unauthorized Hacks . | . . . Terminals . | . . . Fabricators . | . . . Repair Stations . | . . . Recycling Units . | . . . Scanalyzers . | . . . Garrison Access . | . . . Data Cores Recovered . | . . . Used . | . . . Hacking Detections 2 | . 2 . Full Trace Events 2 | . 2 . Feedback Events . | . . . Feedback Blocked . | . . . Robot Schematics Acquired . | . . . Robots Built . | . . . Authchips . | . . . Time . | . . . Total Robot Build Rating . | . . . Part Schematics Acquired . | . . . Parts Built . | . . . Authchips . | . . . Time . | . . . Total Part Build Rating . | . . . Parts Repaired 2 | . 2 . Time 64 | . 64 . Parts Recycled . | . . . Recycled Matter . | . . . Retrieved Matter . | . . . Retrieved Components . | . . . Parts Scanalyzed . | . . . Part Schematics Acquired . | . . . Parts Damaged . | . . . Bothacking | -11 -10 -10 ------------ Run | Yrd Mat Min Used RIF Installer . | . . . Robots Hacked . | . . . Non-combat . | . . . Combat . | . . . Robot Hacks Applied . | . . . Relay Couplers Released . | . . . Fabnet Peak Effective % . | . . . Robots Rewired . | . . . Allies Hacked . | . . . Hacks Repelled . | . . . Allies | -11 -10 -10 -------- Run | Yrd Mat Min Total Allies . | . . . Largest Group . | . . . Highest-Rated Group . | . . . Highest-Rated Ally . | . . . Total Orders . | . . . Ally Attacks . | . . . Total Damage . | . . . Kills . | . . . Allies Corrupted . | . . . Allies Melted . | . . . Intel | -11 -10 -10 ------- Run | Yrd Mat Min Robot Analysis Total . | . . . Derelict Logs Recovered 1 | . . 1 Drone Launches . | . . . Drone Recoveries . | . . . Exploration | -11 -10 -10 ------------- Run | Yrd Mat Min Turns Passed 656 | 87 415 154 Spaces Moved 405 | 58 233 114 Core 10 | 10 . . Treads . | . . . Legs 339 | 48 233 58 Wheels 56 | . . 56 Hover . | . . . Flight . | . . . Fastest Speed 50 | 50 120 80 Average Speed 113 | 107 120 104 Slowest Speed 120 | 120 120 120 Overloaded Moves . | . . . Propulsion Burnouts . | . . . Robots Hopped . | . . . Cave-ins Triggered . | . . . Exploration Rate (%) 24 | 4 45 25 Regions Visited 2 Branch Regions 1 Pre-discovered Areas 1 | . . 1 Known Exits Taken . | . . . Unknown Exits Taken 2 | 1 1 . Scrap Searched . | . . . Spaces Dug . | . . . Terrain Destroyed 30 | . 12 18 Melee . | . . . Projectile . | . . . AOE 30 | . 12 18 Terrain Rammed . | . . . Walls Destroyed . | . . . Machines Disabled . | . . . Actions | -11 -10 -10 --------- Run | Yrd Mat Min Total 556 | 81 330 145 Wait 81 | . 64 17 Move 403 | 57 232 114 Hop . | . . . Pick Up 22 | 12 6 4 Fast Attach . | . . . Attach 17 | 9 2 6 Detach . | . . . Swap 4 | . 3 1 Drop 5 | 2 2 1 Fire 24 | 1 21 2 Melee . | . . . Ram . | . . . Kick . | . . . Crush . | . . . Escape Stasis . | . . . Rewire . | . . . Trap . | . . . Miscellaneous . | . . . Route ------- -11/Scrapyard -10/Materials (discovered 3 exits: [*Mat x2] / [*Min]) -10/Mines History --------- Turn | Location | Event 6 | -11/Scrapyard | Discovered new exit (range 16) 88 | -11/Scrapyard | Entered Materials 206 | -10/Materials | Discovered new exit (range 16) 315 | -10/Materials | Build established: Mutant 431 | -10/Materials | Repaired Assault Rifle 471 | -10/Materials | Repaired Imp. Terrain Scanner 473 | -10/Materials | Discovered new exit (range 10) 482 | -10/Materials | Discovered new exit (range 7) 503 | -10/Materials | Entered Mines 538 | -10/Mines | Received a Rocket Launcher from a helpful Derelict 551 | -10/Mines | Assembled infested the area 556 | -10/Mines | Assisted by a Guerilla fighting off Assembled 562 | -10/Mines | Learned location of Zion (-6) 603 | -10/Mines | Core integrity fell below 50% 604 | -10/Mines | Core integrity fell below 20% 635 | -10/Mines | Lost 6 parts (1p3n2w) 657 | -10/Mines | Destroyed by as-17524 with Assembled Rifle Last Messages --------------- D-53 Grenadier unfolds itself. as-06474 destroyed. Acquired Bore Cannon. as-29653 destroyed. as-68685 destroyed. Rocket Launcher destroyed. Destroyed Rocket Launcher. The unstable cave ceiling collapses. Ion Engine destroyed. Aluminum Leg destroyed. Assault Rifle destroyed. as-82282 destroyed. Wheel destroyed. as-40622 destroyed. as-46570 destroyed. The unstable cave ceiling collapses. [Achievement: Slippery One] Acquired 18 matter. Acquired Wheel. The unstable cave ceiling collapses. Map ----- +----------------------------------------------------+ | ??????????????????????#?????????????? | | ?????#??????????###############?????? | | ????????????????# #?????? | | ????????????????# """ """ """ #?????? | | ????????????????# """ """ """ #?##??? | | ????????????????# """ """ """ #?????? | | ????????????????# #?????? | | ????????????????# """ """ """ #?????? | | ????????????????# """ """ """ ##?#?#? | | ??????????????#?# """ """ """ #?#???? | | ??????????????#?# #?????? | | ??????#????#????# #?????# | | ???????????????## #????## | | ?????????#?????# # #####????# | | ?????????????#?#### # #??????## | | ???????????????## # ## #??????## | | ???????#?????### # # ##???### | | ?????????????# ## # % #?### | | ??????#???#??# < #??# | | ?????????????# # # # #?## | | ?????????#??## # ### | | ?????????????# # ## | | ??#?????????## ########## | | ???????????## a # #????#??? | | ?#???????### a #???????? | | ?????????# @ ### #???????? | | ?????????# ! ##??# % % #??????? | | ?????????## ##??#? ???????? | | ??????????## ##?????# #???????? | | ???????????####??????? ????#??? | | ?#??????????????????? ? ?????????? | | ???????????????????????? ? ?????????? | | ?????????????#??????????????????????? | | ????????????????????????????????????? | | ??#?????????????????????????????????? | | ????????????????????????????????????? | | ????????????????????????????????????? | | ????????????????????????????????????? | | ????????????????????????????????????? | | ????????????????????????????????????? | | ????????? ??????????????????????????? | | ????????????????????????????????????? | | ????????????????????????????????????? | | ????????????????????????????????????? | | ????????????????????????????????????? | | ????????????????????????????????????? | | ????????????????????????????????????? | | ????????????????????????????????????? | | ????????????????????????????????????? | | ????????????????????????????????????? | +----------------------------------------------------+ Best States ------------- Heat Dissipation 25 Energy Generation 10 Energy Capacity 250 Matter Stores 300 Matter Capacity 300 Sight Range 16 Terrain Scan Range 16 Terrain Scan Density 10 Evasion (%) 55 Recoil Reduction 1 Item Schematics ----------------- None Robot Schematics ------------------ None Fabricated ------------ Nothing Alien Tech Used ----------------- None Achievements -------------- Slippery One Challenges ------------ None Game ------ Seed CoreLightpackReconstructor Manual? 0 Play Time 00:13:11 Cumulative 8.9 hours Start 2024.06.10 @ 01:55:46 End 2024.06.10 @ 02:06:45 Sessions 1 Manual Loads 0 Difficulty Rogue Special Mode None Game No. 8 Rogue 8 Adventurer 0 Explorer 0 Win Type - Total 0 Types 0/0/0/0/0/0/0/0/0 Lore% 14 Gallery% 10 Achievement% 10 Wizard Run 0 Options --------- Layout 1 ASCII 0 Keyboard 0 Movement Numpad Keybinds 0 Fullscreen 1 Font 24/Smallcaps Map View 50x35 Zoom Use 0% Tactical HUD 0 Map Filters NONE Filters NONE Steam 1 RUN: e2462094-1880-4a97-a93f-62a91b33d268